[Event "Live Chess"]
[Site "Chess.com"]
[Date "2024.06.02"]
[Round "-"]
[White "McFim"]
[Black "KeithArkell"]
[Result "0-1"]
[WhiteElo "1653"]
[BlackElo "2424"]
[TimeControl "300"]
[EndTime "21:42:14 PDT"]
[Termination "KeithArkell won by resignation"]

1. e4 {[%clk 0:04:56.7]} 1... c6 {[%clk 0:04:59.3]} 2. d4 {[%clk 0:04:55.1]}
2... d5 {[%clk 0:04:59]} 3. exd5 {[%clk 0:04:54.9]} 3... cxd5 {[%clk 0:04:58.5]}
4. Bd3 {[%clk 0:04:54.3]} 4... Nf6 {[%clk 0:04:58]} 5. c3 {[%clk 0:04:53.2]}
5... Nc6 {[%clk 0:04:57.2]} 6. Bf4 {[%clk 0:04:51.4]} 6... Bg4 {[%clk
0:04:56.5]} 7. Nf3 {[%clk 0:04:50.7]} 7... e6 {[%clk 0:04:56.1]} 8. Nbd2 {[%clk
0:04:49.3]} 8... Bd6 {[%clk 0:04:55.4]} 9. Bxd6 {[%clk 0:04:47.8]} 9... Qxd6
{[%clk 0:04:55.1]} 10. O-O {[%clk 0:04:47.1]} 10... O-O {[%clk 0:04:54.1]} 11.
Re1 {[%clk 0:04:46.1]} 11... Rab8 {[%clk 0:04:52.1]} 12. a4 {[%clk 0:04:44.4]}
12... a6 {[%clk 0:04:50.4]} 13. a5 {[%clk 0:04:39]} 13... b5 {[%clk 0:04:49.4]}
14. axb6 {[%clk 0:04:37]} 14... Rxb6 {[%clk 0:04:48.5]} 15. b4 {[%clk
0:04:35.4]} 15... Ra8 {[%clk 0:04:45.4]} 16. h3 {[%clk 0:04:29.5]} 16... Bxf3
{[%clk 0:04:44.4]} 17. Nxf3 {[%clk 0:04:27.7]} 17... a5 {[%clk 0:04:43.9]} 18.
Ne5 {[%clk 0:04:18.4]} 18... Rbb8 {[%clk 0:04:36.9]} 19. b5 {[%clk 0:04:05.4]}
19... Ne7 {[%clk 0:04:34.3]} 20. Ra4 {[%clk 0:03:59.2]} 20... Nd7 {[%clk
0:04:33.3]} 21. Nxd7 {[%clk 0:03:53.7]} 21... Qxd7 {[%clk 0:04:33.2]} 22. Qb3
{[%clk 0:03:46.3]} 22... Qc7 {[%clk 0:04:32.4]} 23. Rea1 {[%clk 0:03:43.7]}
23... Nc8 {[%clk 0:04:31]} 24. Qa3 {[%clk 0:03:28.7]} 24... Nd6 {[%clk
0:04:24.3]} 25. Rb1 {[%clk 0:03:14.7]} 25... g6 {[%clk 0:04:20.4]} 26. g3 {[%clk
0:03:11]} 26... Qb6 {[%clk 0:04:14.8]} 27. Kg2 {[%clk 0:03:05.7]} 27... Rc8
{[%clk 0:04:13.9]} 28. Ra1 {[%clk 0:02:59]} 28... Rc7 {[%clk 0:04:12.6]} 29.
Rxa5 {[%clk 0:02:56.7]} 29... Rxa5 {[%clk 0:04:11.6]} 30. Qxa5 {[%clk
0:02:54.5]} 30... Qxa5 {[%clk 0:04:10.8]} 31. Rxa5 {[%clk 0:02:52.5]} 31... Rxc3
{[%clk 0:04:10.5]} 32. Bf1 {[%clk 0:02:48.4]} 32... Rb3 {[%clk 0:04:09.5]} 33.
Ra8+ {[%clk 0:02:43.4]} 33... Kg7 {[%clk 0:04:08.3]} 34. Rb8 {[%clk 0:02:41.9]}
34... Rb2 {[%clk 0:04:07.6]} 35. b6 {[%clk 0:02:39.6]} 35... Ne4 {[%clk
0:04:05.5]} 36. b7 {[%clk 0:02:34.6]} 36... Rxf2+ {[%clk 0:04:03.4]} 37. Kg1
{[%clk 0:02:33.3]} 37... Rb2 {[%clk 0:04:02.3]} 38. Ba6 {[%clk 0:02:26.6]} 38...
Nd6 {[%clk 0:03:44.2]} 0-1

[Event "Live Chess"]
[Site "Chess.com"]
[Date "2024.06.02"]
[Round "-"]
[White "RockTroll"]
[Black "Duke_of_Bebington"]
[Result "1-0"]
[WhiteElo "2172"]
[BlackElo "1668"]
[TimeControl "300"]
[EndTime "21:42:23 PDT"]
[Termination "RockTroll won by resignation"]

1. Nf3 {[%clk 0:04:58.2]} 1... d5 {[%clk 0:04:58.3]} 2. g3 {[%clk 0:04:58.1]}
2... Nf6 {[%clk 0:04:55.5]} 3. Bg2 {[%clk 0:04:58]} 3... Bf5 {[%clk 0:04:53.7]}
4. O-O {[%clk 0:04:57.2]} 4... c6 {[%clk 0:04:52.9]} 5. d3 {[%clk 0:04:56.9]}
5... h6 {[%clk 0:04:50.6]} 6. Nc3 {[%clk 0:04:56.4]} 6... Nbd7 {[%clk
0:04:48.6]} 7. Nd2 {[%clk 0:04:53.7]} 7... Bh7 {[%clk 0:04:42.6]} 8. e4 {[%clk
0:04:52.8]} 8... d4 {[%clk 0:04:39.5]} 9. Ne2 {[%clk 0:04:51.3]} 9... e5 {[%clk
0:04:38.6]} 10. f4 {[%clk 0:04:50.7]} 10... Bd6 {[%clk 0:04:36.2]} 11. Nf3
{[%clk 0:04:47.5]} 11... Qe7 {[%clk 0:04:33.5]} 12. fxe5 {[%clk 0:04:45.5]}
12... Nxe5 {[%clk 0:04:27.8]} 13. Nfxd4 {[%clk 0:04:36.6]} 13... Bc5 {[%clk
0:04:24.4]} 14. c3 {[%clk 0:04:35.2]} 14... O-O-O {[%clk 0:04:20.5]} 15. Kh1
{[%clk 0:04:33.4]} 15... Bxd4 {[%clk 0:04:11.7]} 16. cxd4 {[%clk 0:04:30.6]}
16... Ned7 {[%clk 0:04:00.6]} 17. Qa4 {[%clk 0:04:28.5]} 17... Kb8 {[%clk
0:03:58.1]} 18. Bf4+ {[%clk 0:04:28.1]} 18... Ka8 {[%clk 0:03:56.3]} 19. Rfc1
{[%clk 0:04:22.9]} 19... Nb6 {[%clk 0:03:54.4]} 20. Qa5 {[%clk 0:04:17.6]} 20...
Nfd7 {[%clk 0:03:39.6]} 21. Rc3 {[%clk 0:04:15.3]} 21... Nb8 {[%clk 0:03:38.6]}
22. Ra3 {[%clk 0:04:06.7]} 1-0

[Event "Live Chess"]
[Site "Chess.com"]
[Date "2024.06.02"]
[Round "-"]
[White "Delacorta"]
[Black "Dhaydon19"]
[Result "0-1"]
[WhiteElo "1527"]
[BlackElo "2674"]
[TimeControl "300"]
[EndTime "21:42:44 PDT"]
[Termination "Dhaydon19 won by resignation"]

1. d4 {[%clk 0:04:57.4]} 1... d5 {[%clk 0:04:59.5]} 2. Nf3 {[%clk 0:04:56.4]}
2... Nf6 {[%clk 0:04:59]} 3. e3 {[%clk 0:04:55.6]} 3... e6 {[%clk 0:04:56.6]} 4.
Bd3 {[%clk 0:04:54.3]} 4... c5 {[%clk 0:04:55.9]} 5. b3 {[%clk 0:04:52.6]} 5...
Nc6 {[%clk 0:04:55.2]} 6. Bb2 {[%clk 0:04:51.6]} 6... Qc7 {[%clk 0:04:54.5]} 7.
Ne5 {[%clk 0:04:48.4]} 7... cxd4 {[%clk 0:04:49.2]} 8. exd4 {[%clk 0:04:47.2]}
8... Bd6 {[%clk 0:04:48.5]} 9. f4 {[%clk 0:04:46]} 9... Ne4 {[%clk 0:04:46.4]}
10. Nd2 {[%clk 0:04:44.4]} 10... Nxd2 {[%clk 0:04:38.3]} 11. Qxd2 {[%clk
0:04:42.3]} 11... f6 {[%clk 0:04:37]} 12. Nxc6 {[%clk 0:04:28.3]} 12... Bxf4
{[%clk 0:04:34.1]} 13. Qf2 {[%clk 0:04:14.7]} 13... bxc6 {[%clk 0:04:30.7]} 14.
g3 {[%clk 0:04:05.1]} 14... Bd6 {[%clk 0:04:28.4]} 15. O-O {[%clk 0:03:55.3]}
15... O-O {[%clk 0:04:25.3]} 16. Qg2 {[%clk 0:03:45.5]} 16... Bd7 {[%clk
0:04:23.1]} 17. Rae1 {[%clk 0:03:36.8]} 17... e5 {[%clk 0:04:18.9]} 18. dxe5
{[%clk 0:03:33.7]} 18... fxe5 {[%clk 0:04:17.8]} 19. c4 {[%clk 0:03:15.6]} 19...
e4 {[%clk 0:04:13.4]} 20. Be2 {[%clk 0:03:14.4]} 20... Rxf1+ {[%clk 0:04:08.3]}
21. Rxf1 {[%clk 0:03:13.2]} 21... Rf8 {[%clk 0:04:07.7]} 22. cxd5 {[%clk
0:03:09.3]} 22... cxd5 {[%clk 0:04:05]} 23. Rc1 {[%clk 0:03:08]} 23... Qb6+
{[%clk 0:04:02.9]} 24. Kh1 {[%clk 0:03:00.7]} 24... Rf2 {[%clk 0:04:01.4]} 0-1

[Event "Live Chess"]
[Site "Chess.com"]
[Date "2024.06.02"]
[Round "-"]
[White "elephantgerrald"]
[Black "KGreenGator"]
[Result "0-1"]
[WhiteElo "785"]
[BlackElo "1783"]
[TimeControl "300"]
[EndTime "21:44:15 PDT"]
[Termination "KGreenGator won by checkmate"]

1. e4 {[%clk 0:04:58.7]} 1... c5 {[%clk 0:04:58.6]} 2. Nf3 {[%clk 0:04:57.1]}
2... e6 {[%clk 0:04:57.9]} 3. Nc3 {[%clk 0:04:55.2]} 3... Nc6 {[%clk 0:04:57.8]}
4. Bb5 {[%clk 0:04:53.8]} 4... Qc7 {[%clk 0:04:56.5]} 5. O-O {[%clk 0:04:52.8]}
5... Nd4 {[%clk 0:04:54.9]} 6. Nxd4 {[%clk 0:04:51.6]} 6... cxd4 {[%clk
0:04:53.9]} 7. Nb1 {[%clk 0:04:41.5]} 7... Nf6 {[%clk 0:04:53.3]} 8. c3 {[%clk
0:04:38.4]} 8... h5 {[%clk 0:04:51.6]} 9. cxd4 {[%clk 0:04:35.4]} 9... Ng4
{[%clk 0:04:50.2]} 10. g3 {[%clk 0:04:28.3]} 10... a6 {[%clk 0:04:45.5]} 11. Bc4
{[%clk 0:04:26.4]} 11... Qxc4 {[%clk 0:04:43.2]} 12. Nc3 {[%clk 0:04:22.3]}
12... Qxd4 {[%clk 0:04:42.1]} 13. d3 {[%clk 0:04:19.6]} 13... Bc5 {[%clk
0:04:34.8]} 14. Be3 {[%clk 0:04:15.5]} 14... Nxe3 {[%clk 0:04:33]} 15. fxe3
{[%clk 0:04:12.2]} 15... Qxe3+ {[%clk 0:04:31.5]} 16. Rf2 {[%clk 0:04:11.2]}
16... Qxf2+ {[%clk 0:04:29.1]} 17. Kh1 {[%clk 0:04:09.8]} 17... h4 {[%clk
0:04:28.3]} 18. gxh4 {[%clk 0:04:07.4]} 18... Rxh4 {[%clk 0:04:26.1]} 19. Qe2
{[%clk 0:03:46.4]} 19... Rxh2# {[%clk 0:04:22.7]} 0-1

[Event "Live Chess"]
[Site "Chess.com"]
[Date "2024.06.02"]
[Round "-"]
[White "booktrunk"]
[Black "rekosheten"]
[Result "0-1"]
[WhiteElo "1528"]
[BlackElo "2465"]
[TimeControl "300"]
[EndTime "21:45:17 PDT"]
[Termination "rekosheten won by checkmate"]

1. d4 {[%clk 0:04:52.9]} 1... Nf6 {[%clk 0:04:57.3]} 2. Nc3 {[%clk 0:04:46.9]}
2... d5 {[%clk 0:04:54.7]} 3. Bf4 {[%clk 0:04:21.3]} 3... c5 {[%clk 0:04:49.4]}
4. dxc5 {[%clk 0:04:18.6]} 4... d4 {[%clk 0:04:31.4]} 5. Na4 {[%clk 0:03:54.5]}
5... Nc6 {[%clk 0:04:26.3]} 6. c3 {[%clk 0:03:50.5]} 6... e5 {[%clk 0:04:24.8]}
7. Bg5 {[%clk 0:03:48.1]} 7... Bg4 {[%clk 0:04:01.5]} 8. Bxf6 {[%clk 0:03:44.4]}
8... gxf6 {[%clk 0:03:57.3]} 9. cxd4 {[%clk 0:03:42.9]} 9... Qa5+ {[%clk
0:03:55]} 10. Nc3 {[%clk 0:03:36.7]} 10... exd4 {[%clk 0:03:53.3]} 11. f3 {[%clk
0:03:34.7]} 11... dxc3 {[%clk 0:03:49.2]} 12. bxc3 {[%clk 0:03:33.8]} 12...
Qxc3+ {[%clk 0:03:46.3]} 13. Kf2 {[%clk 0:03:32.3]} 13... Bxc5+ {[%clk
0:03:45.4]} 14. e3 {[%clk 0:03:28.3]} 14... Qxe3+ {[%clk 0:03:41.1]} 15. Kg3
{[%clk 0:03:24.7]} 15... Be6 {[%clk 0:03:38.1]} 16. Qd3 {[%clk 0:03:19.9]} 16...
Qf2+ {[%clk 0:03:36.4]} 17. Kf4 {[%clk 0:03:14]} 17... Rd8 {[%clk 0:03:33.2]}
18. Qxd8+ {[%clk 0:03:00.2]} 18... Nxd8 {[%clk 0:03:30.1]} 19. Rd1 {[%clk
0:02:59.3]} 19... Qe3+ {[%clk 0:03:26.1]} 20. Kg3 {[%clk 0:02:56]} 20... Qg5#
{[%clk 0:03:26]} 0-1

[Event "Live Chess"]
[Site "Chess.com"]
[Date "2024.06.02"]
[Round "-"]
[White "Mangoalo"]
[Black "Delacorta"]
[Result "0-1"]
[WhiteElo "1069"]
[BlackElo "1529"]
[TimeControl "300"]
[EndTime "21:46:48 PDT"]
[Termination "Delacorta won by resignation"]

1. e4 {[%clk 0:04:58.6]} 1... e6 {[%clk 0:04:55.2]} 2. d4 {[%clk 0:04:56.8]}
2... d5 {[%clk 0:04:54.1]} 3. exd5 {[%clk 0:04:56.7]} 3... exd5 {[%clk
0:04:52.3]} 4. Nf3 {[%clk 0:04:54.8]} 4... Nf6 {[%clk 0:04:51.4]} 5. Bg5 {[%clk
0:04:53.6]} 5... Bd6 {[%clk 0:04:48]} 6. Nc3 {[%clk 0:04:48]} 6... c6 {[%clk
0:04:46.8]} 7. Qe2+ {[%clk 0:04:46]} 7... Be6 {[%clk 0:04:38.1]} 8. Bxf6 {[%clk
0:04:45]} 8... Qxf6 {[%clk 0:04:32.7]} 9. O-O-O {[%clk 0:04:44.9]} 9... O-O
{[%clk 0:04:30.2]} 10. g3 {[%clk 0:04:39.5]} 10... b5 {[%clk 0:04:26.2]} 11. Nh4
{[%clk 0:04:37.9]} 11... b4 {[%clk 0:04:22.1]} 12. Nb1 {[%clk 0:04:35.8]} 12...
a5 {[%clk 0:04:02.3]} 13. Nd2 {[%clk 0:04:32.4]} 13... Re8 {[%clk 0:04:01]} 14.
Bg2 {[%clk 0:04:29.4]} 14... Nd7 {[%clk 0:03:55.9]} 15. Kb1 {[%clk 0:04:24.7]}
15... Bf5 {[%clk 0:03:49.2]} 16. Nxf5 {[%clk 0:04:18]} 16... Rxe2 {[%clk
0:03:47.3]} 17. Nxd6 {[%clk 0:04:13.2]} 17... Qxd6 {[%clk 0:03:45.1]} 18. Rhg1
{[%clk 0:04:09.6]} 18... Rxf2 {[%clk 0:03:42.1]} 0-1

[Event "Live Chess"]
[Site "Chess.com"]
[Date "2024.06.02"]
[Round "-"]
[White "McFim"]
[Black "RockTroll"]
[Result "0-1"]
[WhiteElo "1652"]
[BlackElo "2173"]
[TimeControl "300"]
[EndTime "21:47:28 PDT"]
[Termination "RockTroll won by checkmate"]

1. e4 {[%clk 0:04:57.9]} 1... d5 {[%clk 0:04:59.2]} 2. exd5 {[%clk 0:04:56.4]}
2... Qxd5 {[%clk 0:04:59.1]} 3. Nc3 {[%clk 0:04:55]} 3... Qd8 {[%clk 0:04:58.7]}
4. d4 {[%clk 0:04:53.5]} 4... Nf6 {[%clk 0:04:58.3]} 5. Bc4 {[%clk 0:04:52]}
5... Bg4 {[%clk 0:04:55.3]} 6. Nge2 {[%clk 0:04:48.8]} 6... e6 {[%clk
0:04:53.7]} 7. h3 {[%clk 0:04:47.3]} 7... Bh5 {[%clk 0:04:52.6]} 8. Be3 {[%clk
0:04:45.2]} 8... c6 {[%clk 0:04:50.8]} 9. Qd2 {[%clk 0:04:43.9]} 9... Nbd7
{[%clk 0:04:49.7]} 10. g4 {[%clk 0:04:42.7]} 10... Bg6 {[%clk 0:04:48.3]} 11.
O-O-O {[%clk 0:04:39.8]} 11... b5 {[%clk 0:04:46.7]} 12. Bd3 {[%clk 0:04:30.7]}
12... b4 {[%clk 0:04:46.1]} 13. Na4 {[%clk 0:04:26.9]} 13... Qa5 {[%clk
0:04:45.2]} 14. b3 {[%clk 0:04:20.7]} 14... Nb6 {[%clk 0:04:44.4]} 15. Bxg6
{[%clk 0:04:04.1]} 15... hxg6 {[%clk 0:04:43]} 16. Kb1 {[%clk 0:03:59.1]} 16...
Nxa4 {[%clk 0:04:41.8]} 17. bxa4 {[%clk 0:03:58.1]} 17... Qxa4 {[%clk
0:04:41.1]} 18. Nc1 {[%clk 0:03:53.7]} 18... Nd5 {[%clk 0:04:39.7]} 19. Ne2
{[%clk 0:03:45.4]} 19... Rb8 {[%clk 0:04:37.9]} 20. Qd3 {[%clk 0:03:34.9]} 20...
Bd6 {[%clk 0:04:08.5]} 21. Qb3 {[%clk 0:03:29.9]} 21... Nc3+ {[%clk 0:04:07.6]}
22. Ka1 {[%clk 0:03:21]} 22... Qxb3 {[%clk 0:04:06.2]} 23. cxb3 {[%clk
0:03:18.9]} 23... Nxe2 {[%clk 0:04:05.8]} 24. Rd2 {[%clk 0:03:17.6]} 24... Nc3
{[%clk 0:04:05]} 25. Rc2 {[%clk 0:03:15.8]} 25... Kd7 {[%clk 0:04:02.8]} 26. h4
{[%clk 0:03:13.7]} 26... Rb5 {[%clk 0:03:57.1]} 27. h5 {[%clk 0:03:11.1]} 27...
gxh5 {[%clk 0:03:54.8]} 28. gxh5 {[%clk 0:03:09.9]} 28... Rbxh5 {[%clk
0:03:54.4]} 29. Rxh5 {[%clk 0:03:08.2]} 29... Rxh5 {[%clk 0:03:54.3]} 30. Rc1
{[%clk 0:03:06.4]} 30... Rh2 {[%clk 0:03:49.2]} 31. Rf1 {[%clk 0:03:03.5]} 31...
f5 {[%clk 0:03:47.7]} 32. Kb2 {[%clk 0:02:59.4]} 32... f4 {[%clk 0:03:46.7]} 33.
Bd2 {[%clk 0:02:58.1]} 33... Ne4 {[%clk 0:03:45.8]} 34. Be1 {[%clk 0:02:56.6]}
34... g5 {[%clk 0:03:43.5]} 35. Kc2 {[%clk 0:02:53.8]} 35... g4 {[%clk
0:03:42.8]} 36. Kd3 {[%clk 0:02:52.2]} 36... Ng5 {[%clk 0:03:41.6]} 37. Rg1
{[%clk 0:02:50.2]} 37... g3 {[%clk 0:03:37.8]} 38. fxg3 {[%clk 0:02:48.6]} 38...
fxg3 {[%clk 0:03:37.2]} 39. Bxg3 {[%clk 0:02:46.5]} 39... Rh3 {[%clk 0:03:36.8]}
40. Kc4 {[%clk 0:02:42.4]} 40... Rxg3 {[%clk 0:03:35.9]} 41. Rxg3 {[%clk
0:02:39.4]} 41... Bxg3 {[%clk 0:03:35.8]} 42. Kxb4 {[%clk 0:02:37.3]} 42... Kd6
{[%clk 0:03:35.7]} 43. Kc4 {[%clk 0:02:36]} 43... Nf7 {[%clk 0:03:32.8]} 44. a4
{[%clk 0:02:33.8]} 44... Bf2 {[%clk 0:03:32]} 45. b4 {[%clk 0:02:32.4]} 45...
Nh6 {[%clk 0:03:31]} 46. b5 {[%clk 0:02:29.8]} 46... cxb5+ {[%clk 0:03:29.9]}
47. axb5 {[%clk 0:02:27.8]} 47... Nf5 {[%clk 0:03:29.1]} 48. b6 {[%clk
0:02:24.6]} 48... axb6 {[%clk 0:03:28]} 49. Kb5 {[%clk 0:02:23.6]} 49... Bxd4
{[%clk 0:03:26.4]} 50. Ka6 {[%clk 0:02:23.5]} 50... e5 {[%clk 0:03:26.1]} 51.
Kb7 {[%clk 0:02:22.3]} 51... e4 {[%clk 0:03:26]} 52. Kc8 {[%clk 0:02:21.4]}
52... e3 {[%clk 0:03:25.9]} 53. Kd8 {[%clk 0:02:20.5]} 53... e2 {[%clk
0:03:25.8]} 54. Kc8 {[%clk 0:02:19.7]} 54... e1=Q {[%clk 0:03:25.3]} 55. Kd8
{[%clk 0:02:18.9]} 55... b5 {[%clk 0:03:24.5]} 56. Kc8 {[%clk 0:02:18.1]} 56...
b4 {[%clk 0:03:24.4]} 57. Kd8 {[%clk 0:02:17.5]} 57... b3 {[%clk 0:03:24.3]} 58.
Kc8 {[%clk 0:02:16.8]} 58... b2 {[%clk 0:03:24.2]} 59. Kd8 {[%clk 0:02:16.3]}
59... b1=Q {[%clk 0:03:24.1]} 60. Kc8 {[%clk 0:02:15.8]} 60... Qb2 {[%clk
0:03:23.6]} 61. Kd8 {[%clk 0:02:14.9]} 61... Qb8# {[%clk 0:03:23.3]} 0-1

[Event "Live Chess"]
[Site "Chess.com"]
[Date "2024.06.02"]
[Round "-"]
[White "Dhaydon19"]
[Black "elephantgerrald"]
[Result "1-0"]
[WhiteElo "2674"]
[BlackElo "785"]
[TimeControl "300"]
[EndTime "21:47:34 PDT"]
[Termination "Dhaydon19 won by checkmate"]

1. d4 {[%clk 0:04:57.6]} 1... d5 {[%clk 0:04:58.6]} 2. Nf3 {[%clk 0:04:57.2]}
2... Nc6 {[%clk 0:04:56.8]} 3. g3 {[%clk 0:04:56.9]} 3... Bg4 {[%clk 0:04:55.3]}
4. Bg2 {[%clk 0:04:56.2]} 4... Bxf3 {[%clk 0:04:54.2]} 5. Bxf3 {[%clk
0:04:55.2]} 5... Nf6 {[%clk 0:04:53.7]} 6. c4 {[%clk 0:04:54.3]} 6... dxc4
{[%clk 0:04:52.5]} 7. d5 {[%clk 0:04:53.2]} 7... Ne5 {[%clk 0:04:51.5]} 8. Bg2
{[%clk 0:04:52.4]} 8... e6 {[%clk 0:04:49.1]} 9. Bf4 {[%clk 0:04:50.8]} 9... Bd6
{[%clk 0:04:46.3]} 10. dxe6 {[%clk 0:04:49.8]} 10... fxe6 {[%clk 0:04:45.4]} 11.
Qa4+ {[%clk 0:04:48]} 11... c6 {[%clk 0:04:43.7]} 12. Nc3 {[%clk 0:04:46]} 12...
O-O {[%clk 0:04:42.2]} 13. Rd1 {[%clk 0:04:44]} 13... Rf7 {[%clk 0:04:02.1]} 14.
Bxe5 {[%clk 0:04:41.4]} 14... Ne8 {[%clk 0:03:55.7]} 15. Bxd6 {[%clk 0:04:39.2]}
15... Nxd6 {[%clk 0:03:54]} 16. O-O {[%clk 0:04:38.1]} 16... b5 {[%clk
0:03:49.8]} 17. Qc2 {[%clk 0:04:31.9]} 17... g6 {[%clk 0:03:46.3]} 18. Ne4
{[%clk 0:04:27.9]} 18... Rd7 {[%clk 0:03:40]} 19. Nxd6 {[%clk 0:04:22.7]} 19...
Rxd6 {[%clk 0:03:38.6]} 20. Rxd6 {[%clk 0:04:22.3]} 20... Qxd6 {[%clk
0:03:36.9]} 21. Rd1 {[%clk 0:04:22]} 21... Qf8 {[%clk 0:03:32.7]} 22. Bxc6
{[%clk 0:04:20.1]} 22... Rb8 {[%clk 0:03:24.9]} 23. Qe4 {[%clk 0:04:17.5]} 23...
Qg7 {[%clk 0:03:07.9]} 24. Qxe6+ {[%clk 0:04:15.1]} 24... Qf7 {[%clk 0:03:06.9]}
25. Qd6 {[%clk 0:04:11.4]} 25... Rf8 {[%clk 0:03:02.5]} 26. Bd5 {[%clk
0:04:09.4]} 26... Qxd5 {[%clk 0:02:57.2]} 27. Qxd5+ {[%clk 0:04:08.3]} 27... Kh8
{[%clk 0:02:55.8]} 28. Qxb5 {[%clk 0:04:07.8]} 28... Rg8 {[%clk 0:02:53.1]} 29.
Qe5+ {[%clk 0:04:06.6]} 29... Rg7 {[%clk 0:02:51.8]} 30. Rd8# {[%clk 0:04:06.2]}
1-0

[Event "Live Chess"]
[Site "Chess.com"]
[Date "2024.06.02"]
[Round "-"]
[White "IgorSchukin"]
[Black "MagnersCarlsberg2870"]
[Result "0-1"]
[WhiteElo "1774"]
[BlackElo "1832"]
[TimeControl "300"]
[EndTime "21:47:57 PDT"]
[Termination "MagnersCarlsberg2870 won by checkmate"]

1. e4 {[%clk 0:04:57.5]} 1... e5 {[%clk 0:04:58.3]} 2. Nf3 {[%clk 0:04:56.6]}
2... Nf6 {[%clk 0:04:57]} 3. Nc3 {[%clk 0:04:56.1]} 3... Nc6 {[%clk 0:04:56]} 4.
d4 {[%clk 0:04:55.2]} 4... Bb4 {[%clk 0:04:53.1]} 5. Nxe5 {[%clk 0:04:53.7]}
5... Nxe4 {[%clk 0:04:51.3]} 6. Qf3 {[%clk 0:04:51.5]} 6... O-O {[%clk
0:04:37.9]} 7. a3 {[%clk 0:04:49.2]} 7... Bxc3+ {[%clk 0:04:36.4]} 8. bxc3
{[%clk 0:04:47.3]} 8... Nf6 {[%clk 0:04:32.1]} 9. Bg5 {[%clk 0:04:41.1]} 9... d6
{[%clk 0:04:17.3]} 10. Nxc6 {[%clk 0:04:37.2]} 10... bxc6 {[%clk 0:04:15.1]} 11.
Be2 {[%clk 0:04:23.3]} 11... Re8 {[%clk 0:04:11.9]} 12. O-O {[%clk 0:04:22]}
12... Qe7 {[%clk 0:03:58]} 13. Rfe1 {[%clk 0:04:14.3]} 13... h6 {[%clk
0:03:55.3]} 14. Bxf6 {[%clk 0:04:12.6]} 14... Qxf6 {[%clk 0:03:54.4]} 15. Qxc6
{[%clk 0:04:08.6]} 15... Bf5 {[%clk 0:03:43.2]} 16. Bf3 {[%clk 0:04:05.1]} 16...
Reb8 {[%clk 0:03:33.3]} 17. Qxa8 {[%clk 0:03:58.1]} 17... Rxa8 {[%clk
0:03:30.9]} 18. Bxa8 {[%clk 0:03:57.7]} 18... Bxc2 {[%clk 0:03:28]} 19. Re8+
{[%clk 0:03:54.5]} 19... Kh7 {[%clk 0:03:26.4]} 20. Be4+ {[%clk 0:03:53.2]}
20... Bxe4 {[%clk 0:03:24.5]} 21. Rxe4 {[%clk 0:03:52.1]} 21... Qg5 {[%clk
0:03:11.9]} 22. Rae1 {[%clk 0:03:48.7]} 22... Qd2 {[%clk 0:03:09.8]} 23. c4
{[%clk 0:03:42.8]} 23... Qc3 {[%clk 0:03:06.7]} 24. Re7 {[%clk 0:03:36.2]} 24...
Qxc4 {[%clk 0:03:04.6]} 25. Rxf7 {[%clk 0:03:32.9]} 25... Qxd4 {[%clk
0:03:02.2]} 26. Rxc7 {[%clk 0:03:30.5]} 26... Qa4 {[%clk 0:02:50.6]} 27. Rc3
{[%clk 0:03:21.2]} 27... Qd4 {[%clk 0:02:45.6]} 28. Rce3 {[%clk 0:03:11.1]}
28... d5 {[%clk 0:02:36.1]} 29. h3 {[%clk 0:03:09.7]} 29... a5 {[%clk
0:02:32.9]} 30. Rb1 {[%clk 0:03:02.6]} 30... Qf6 {[%clk 0:02:28.3]} 31. Rb5
{[%clk 0:02:55]} 31... d4 {[%clk 0:02:27.1]} 32. Rf3 {[%clk 0:02:50.2]} 32...
Qc6 {[%clk 0:02:19.9]} 33. a4 {[%clk 0:02:33.9]} 33... Qc2 {[%clk 0:02:17.6]}
34. Rd5 {[%clk 0:02:22]} 34... Qxa4 {[%clk 0:02:13.4]} 35. Rd3 {[%clk
0:02:14.5]} 35... Qa1+ {[%clk 0:02:09.7]} 36. Kh2 {[%clk 0:02:12.9]} 36... a4
{[%clk 0:02:08.2]} 37. R5xd4 {[%clk 0:02:10.1]} 37... a3 {[%clk 0:02:07.1]} 38.
Rg4 {[%clk 0:01:58.4]} 38... a2 {[%clk 0:02:04.1]} 39. Rd7 {[%clk 0:01:50.6]}
39... Qe5+ {[%clk 0:02:02]} 40. f4 {[%clk 0:01:46.9]} 40... Qf6 {[%clk
0:01:56.2]} 41. Ra7 {[%clk 0:01:40.4]} 41... a1=Q {[%clk 0:01:54.4]} 42. Rxa1
{[%clk 0:01:39.1]} 42... Qxa1 {[%clk 0:01:53.1]} 43. Rg3 {[%clk 0:01:29.5]}
43... Qf6 {[%clk 0:01:47.9]} 44. Rf3 {[%clk 0:01:24.4]} 44... Qf5 {[%clk
0:01:44.1]} 45. Rf2 {[%clk 0:01:17]} 45... Kg6 {[%clk 0:01:41.6]} 46. Rf1 {[%clk
0:00:46.4]} 46... Kf6 {[%clk 0:01:40.2]} 47. g4 {[%clk 0:00:44.1]} 47... Qc2+
{[%clk 0:01:37.3]} 48. Kg3 {[%clk 0:00:34]} 48... Qc3+ {[%clk 0:01:30.6]} 49.
Rf3 {[%clk 0:00:32.6]} 49... Qe1+ {[%clk 0:01:29.3]} 50. Kg2 {[%clk 0:00:25.4]}
50... Qe2+ {[%clk 0:01:22.5]} 51. Rf2 {[%clk 0:00:24.2]} 51... Qe4+ {[%clk
0:01:21.4]} 52. Rf3 {[%clk 0:00:22.6]} 52... Ke6 {[%clk 0:01:20.5]} 53. Kg3
{[%clk 0:00:21.1]} 53... Kd5 {[%clk 0:01:19.4]} 54. h4 {[%clk 0:00:18.5]} 54...
Kd4 {[%clk 0:01:18.2]} 55. g5 {[%clk 0:00:17.2]} 55... hxg5 {[%clk 0:01:16.3]}
56. fxg5 {[%clk 0:00:15.2]} 56... Qe1+ {[%clk 0:01:15.1]} 57. Rf2 {[%clk
0:00:14.1]} 57... Ke3 {[%clk 0:01:13.7]} 58. Kg4 {[%clk 0:00:11.6]} 58... Qxf2
{[%clk 0:01:10.4]} 59. g6 {[%clk 0:00:10.5]} 59... Qf4+ {[%clk 0:01:07.8]} 60.
Kh5 {[%clk 0:00:08.9]} 60... Qh6+ {[%clk 0:01:06.7]} 61. Kg4 {[%clk 0:00:07.7]}
61... Qxg6+ {[%clk 0:01:03.6]} 62. Kh3 {[%clk 0:00:07.3]} 62... Kf4 {[%clk
0:01:01.7]} 63. Kh2 {[%clk 0:00:04.3]} 63... Kf3 {[%clk 0:01:00.3]} 64. Kh1
{[%clk 0:00:02.3]} 64... Qg2# {[%clk 0:00:59.1]} 0-1